fUSD/lending_fUSD_20250606
["ID","MTS","AMOUNT","RATE_DAILY","PERIOD"]
[364705589,1749213045763,-150.0,0.00030164,7]
[364705591,1749213045772,-480.0,0.00030164,7]
[364705592,1749213045782,-150.0,0.00030164,7]
[364705595,1749213045792,-500.0,0.00030164,7]
[364705596,1749213045801,-480.0,0.00030164,7]
[364705598,1749213045810,-602.45845138,0.00030164,7]
[364705600,1749213045820,-166.83162424,0.00030164,7]
[364705602,1749213045830,-480.0,0.00030164,7]
[364705604,1749213045839,-480.0,0.00030164,7]
[364705607,1749213045848,-483.31325092,0.00030164,7]
[364705608,1749213045859,-158.91544067,0.00030164,2]
[364705611,1749213045869,-525.47,0.00030164,7]
[364705612,1749213045878,-480.0,0.00030164,7]
[364705615,1749213045888,-480.0,0.00030164,7]
[364705616,1749213045897,-443.50280836,0.00030164,7]
[364705618,1749213045907,-1248.93807235,0.00030164,30]
[364705620,1749213045916,-480.0,0.00030164,7]
[364705623,1749213045926,-480.0,0.00030164,7]
[364705625,1749213045935,-480.0,0.00030164,7]
[364705627,1749213045944,-480.0,0.00030164,7]
[364705629,1749213045954,-484.15756408,0.00030164,7]
[364705631,1749213045963,-428.0309045,0.00030164,7]
[364705633,1749213045972,-429.53819856,0.00030164,7]
[364705634,1749213045981,-480.0,0.00030164,7]
[364705637,1749213045990,-480.0,0.00030164,7]
[364705639,1749213046000,-480.0,0.00030164,7]
[364705641,1749213046012,-480.0,0.00030164,7]
[364705642,1749213046021,-443.47294183,0.00030164,7]
[364705644,1749213046030,-480.0,0.00030164,7]
[364705646,1749213046039,-933.97,0.00030164,7]
[364705648,1749213046049,-480.0,0.00030164,7]
[364705651,1749213046058,-480.0,0.00030164,7]
[364705652,1749213046068,-480.0,0.00030164,7]
[364705654,1749213046077,-480.0,0.00030164,7]
[364705656,1749213046086,-771.64,0.00030164,7]
[364705657,1749213046096,-480.0,0.00030164,7]
[364705659,1749213046106,-513.01,0.00030164,7]
[364705661,1749213046115,-480.0,0.00030164,7]
[364705662,1749213046126,-573.75,0.00030164,7]
[364705664,1749213046135,-480.0,0.00030164,7]
[364705666,1749213046144,-485.89271139,0.00030164,7]
[364705668,1749213046154,-480.0,0.00030164,7]
[364705669,1749213046164,-480.0,0.00030164,7]
[364705692,1749213046413,-475.62597457,0.00030164,7]
[364705695,1749213046430,-480.0,0.00030164,7]
[364705697,1749213046444,-480.0,0.00030164,7]
[364705698,1749213046455,-431.39865136,0.00030164,7]
[364705700,1749213046465,-538.6,0.00030164,7]
[364705702,1749213046476,-480.0,0.00030164,7]
[364705704,1749213046486,-484.84353441,0.00030164,7]
[364705706,1749213046496,-480.0,0.00030164,7]
[364705708,1749213046507,-480.0,0.00030164,7]
[364705710,1749213046521,-480.0,0.00030164,7]
[364705711,1749213046531,-480.0,0.00030164,7]
[364705713,1749213046541,-480.0,0.00030164,7]
[364705715,1749213046552,-480.0,0.00030164,7]
[364705717,1749213046562,-480.0,0.00030164,7]
[364705719,1749213046573,-761.43,0.00030164,7]
[364705721,1749213046588,-480.0,0.00030164,7]
[364705723,1749213046598,-480.0,0.00030164,7]
[364705725,1749213046608,-751.61,0.00030164,7]
[364705727,1749213046619,-494.89,0.00030164,7]
[364705729,1749213046630,-493.12451523,0.00030164,7]
[364705730,1749213046641,-480.0,0.00030164,7]
[364705732,1749213046651,-480.0,0.00030164,7]
[364705734,1749213046661,-480.0,0.00030164,7]
[364705736,1749213046672,-672.08,0.00030164,7]
[364705738,1749213046683,-480.0,0.00030164,7]
[364705740,1749213046693,-500.0,0.00030164,7]
[364705742,1749213046703,-480.0,0.00030164,7]
[364705744,1749213046713,-592.83,0.00030164,7]
[364705746,1749213046724,-480.0,0.00030164,7]
[364705747,1749213046734,-480.0,0.00030164,7]
[364705749,1749213046745,-480.0,0.00030164,7]
[364705751,1749213046755,-464.7628477,0.00030164,7]
[364705753,1749213046768,-480.0,0.00030164,7]
[364705755,1749213046778,-488.24189372,0.00030164,7]
[364705757,1749213046788,-480.0,0.00030164,7]
[364705759,1749213046798,-480.0,0.00030164,7]
[364705760,1749213046808,-480.0,0.00030164,7]
[364705762,1749213046819,-1051.14,0.00030164,7]
[364705764,1749213046830,-480.0,0.00030164,7]
[364705766,1749213046840,-458.21417895,0.00030164,7]
[364705768,1749213046850,-486.41058017,0.00030164,7]
[364705770,1749213046861,-480.0,0.00030164,7]
[364705772,1749213046872,-413.45219751,0.00030164,7]
[364705774,1749213046882,-480.0,0.00030164,7]
[364705776,1749213046893,-489.10900614,0.00030164,7]
[364705778,1749213046903,-480.0,0.00030164,7]
[364705779,1749213046913,-480.0,0.00030164,7]
[364705781,1749213046923,-480.0,0.00030164,7]
[364705783,1749213046934,-480.0,0.00030164,7]
[364705785,1749213046943,-480.0,0.00030164,7]
[364705787,1749213046954,-480.0,0.00030164,7]
[364705789,1749213046965,-480.0,0.00030164,7]
[364705791,1749213046975,-510.55,0.00030164,7]
[364705792,1749213046986,-480.0,0.00030164,7]
[364705794,1749213046997,-480.0,0.00030164,7]
[364705796,1749213047008,-155.788647,0.00030164,7]
[364705798,1749213047023,-480.0,0.00030164,7]
[364705800,1749213047033,-480.0,0.00030164,7]
[364705802,1749213047043,-858.04,0.00030164,7]
[364705804,1749213047053,-539.94,0.00030164,7]
[364705805,1749213047063,-480.0,0.00030164,7]
[364705807,1749213047073,-490.32581632,0.00030164,7]
[364705809,1749213047083,-480.0,0.00030164,7]
[364705811,1749213047093,-303.27141357,0.00030164,7]
[364705813,1749213047103,-480.0,0.00030164,7]
[364705815,1749213047113,-480.0,0.00030164,7]
[364705817,1749213047123,-480.0,0.00030164,7]
[364705819,1749213047132,-480.0,0.00030164,7]
[364705820,1749213047142,-480.0,0.00030164,7]
[364705822,1749213047152,-929.89,0.00030164,7]
[364705824,1749213047162,-480.0,0.00030164,7]
[364705826,1749213047171,-679.01,0.00030164,7]
[364705828,1749213047181,-480.0,0.00030164,7]
[364705830,1749213047191,-480.0,0.00030164,7]
[364705832,1749213047201,-488.83298494,0.00030164,7]
[364705834,1749213047212,-480.0,0.00030164,7]
[364705836,1749213047221,-784.3,0.00030164,7]
[364705837,1749213047231,-480.0,0.00030164,7]
[364705839,1749213047241,-480.0,0.00030164,7]
[364705841,1749213047252,-480.0,0.00030164,7]
[364705843,1749213047266,-480.0,0.00030164,7]
[364705845,1749213047276,-480.0,0.00030164,7]
[364705847,1749213047286,-480.0,0.00030164,7]
[364705849,1749213047296,-480.0,0.00030164,7]
[364705851,1749213047306,-480.0,0.00030164,7]
[364705853,1749213047316,-484.97037992,0.00030164,7]
[364705855,1749213047326,-480.0,0.00030164,7]
[364705857,1749213047337,-480.0,0.00030164,7]
[364705859,1749213047347,-480.0,0.00030164,7]
[364705861,1749213047356,-739.33,0.00030164,7]
[364705863,1749213047366,-481.42441416,0.00030164,7]
[364705865,1749213047375,-480.0,0.00030164,7]
[364705867,1749213047385,-768.92,0.00030164,30]
[364705869,1749213047394,-480.0,0.00030164,7]
[364705871,1749213047405,-425.92291331,0.00030164,7]
[364705873,1749213047415,-489.96060196,0.00030164,7]
[364705875,1749213047424,-480.0,0.00030164,7]
[364705877,1749213047434,-480.0,0.00030164,7]
[364705879,1749213047444,-480.0,0.00030164,7]
[364705881,1749213047454,-480.0,0.00030164,7]
[364705883,1749213047464,-480.0,0.00030164,7]
[364705885,1749213047474,-933.16,0.00030164,7]
[364705887,1749213047484,-480.0,0.00030164,7]
[364705889,1749213047494,-1781.6,0.00030164,7]
[364705892,1749213047504,-480.0,0.00030164,7]
[364705893,1749213047515,-480.0,0.00030164,7]
[364705896,1749213047526,-480.0,0.00030164,7]
[364705897,1749213047535,-503.88846495,0.00030164,7]
[364705900,1749213047545,-480.0,0.00030164,7]
[364705902,1749213047555,-480.0,0.00030164,7]
[364705903,1749213047565,-480.0,0.00030164,7]
[364705905,1749213047575,-480.0,0.00030164,7]
[364705906,1749213047585,-480.0,0.00030164,7]
[364705907,1749213047603,-480.0,0.00030164,7]
[364705908,1749213047617,-480.0,0.00030164,7]
[364705909,1749213047628,-480.0,0.00030164,7]
[364705910,1749213047639,-480.0,0.00030164,7]
[364705911,1749213047650,-480.0,0.00030164,7]
[364705912,1749213047660,-809.3,0.00030164,7]
[364705913,1749213047674,-480.0,0.00030164,7]
[364705914,1749213047685,-613.42799947,0.00030164,7]
[364705915,1749213047696,-1294.11,0.00030164,7]
[364705916,1749213047706,-480.0,0.00030164,7]
[364705917,1749213047717,-480.0,0.00030164,7]
[364705918,1749213047727,-480.0,0.00030164,7]
[364705919,1749213047738,-480.0,0.00030164,7]
[364705920,1749213047749,-241.70510231,0.00030164,7]
[364705921,1749213047760,-480.0,0.00030164,7]
[364705922,1749213047776,-480.0,0.00030164,7]
[364705924,1749213047787,-480.0,0.00030164,7]
[364705925,1749213047797,-480.0,0.00030164,7]
[364705927,1749213047807,-480.0,0.00030164,7]
[364705929,1749213047817,-483.41504602,0.00030164,7]
[364705931,1749213047827,-934.37,0.00030164,7]
[364705933,1749213047837,-480.0,0.00030164,7]
[364705935,1749213047848,-486.7117137,0.00030164,7]
[364705937,1749213047858,-480.0,0.00030164,7]
[364705939,1749213047869,-480.0,0.00030164,7]
[364705941,1749213047879,-480.0,0.00030164,7]
[364705943,1749213047890,-480.0,0.00030164,7]
[364705945,1749213047901,-480.0,0.00030164,7]
[364705947,1749213047912,-480.0,0.00030164,7]
[364705950,1749213047922,-476.77350029,0.00030164,7]
[364705952,1749213047932,-480.0,0.00030164,7]
[364705954,1749213047942,-480.0,0.00030164,7]
[364705956,1749213047951,-2000.0,0.00030164,7]
[364705958,1749213047961,-480.0,0.00030164,7]
[364705960,1749213047971,-484.5866159,0.00030164,7]
[364705962,1749213047980,-408.83626208,0.00030164,7]
[364705964,1749213047989,-480.0,0.00030164,7]
[364705966,1749213047999,-484.28248514,0.00030164,7]
[364705968,1749213048009,-1469.68,0.00030164,7]
[364705970,1749213048022,-480.0,0.00030164,7]
[364705972,1749213048033,-2966.45,0.00030164,7]
[364705974,1749213048043,-480.0,0.00030164,7]
[364705976,1749213048054,-480.0,0.00030164,7]
[364705978,1749213048064,-810.53,0.00030164,7]
[364705980,1749213048075,-480.0,0.00030164,7]
[364705982,1749213048085,-480.0,0.00030164,7]
[364705984,1749213048096,-480.0,0.00030164,7]
[364705986,1749213048106,-480.0,0.00030164,7]
[364705988,1749213048116,-420.0,0.00030164,7]
[364705990,1749213048126,-485.13260074,0.00030164,7]
[364705992,1749213048137,-558.87,0.00030164,7]
[364705994,1749213048147,-1095.79,0.00030164,2]
[364705996,1749213048157,-1882.14,0.00030164,7]
[364705998,1749213048167,-1095.79,0.00030164,2]
[364706001,1749213048177,-1095.79,0.00030164,2]
[364706002,1749213048187,-1095.79,0.00030164,2]
[364706004,1749213048197,-480.0,0.00030164,7]
[364706007,1749213048208,-486.49874473,0.00030164,7]
[364706009,1749213048218,-500.0,0.00030164,7]
[364706011,1749213048228,-480.0,0.00030164,7]
[364706013,1749213048238,-480.0,0.00030164,7]
[364706015,1749213048248,-449.50438927,0.00030164,7]
[364706017,1749213048258,-480.0,0.00030164,7]
[364706019,1749213048272,-336.86568805,0.00030164,7]
[364706021,1749213048282,-656.54,0.00030164,7]
[364706023,1749213048292,-480.0,0.00030164,7]
[364706025,1749213048303,-480.0,0.00030164,7]
[364706027,1749213048313,-480.0,0.00030164,7]
[364706029,1749213048323,-195.16024903,0.00030164,7]
[364706031,1749213048333,-480.0,0.00030164,7]
[364706033,1749213048342,-480.0,0.00030164,7]
[364706035,1749213048353,-1664.81,0.00030164,7]
[364706037,1749213048363,-480.0,0.00030164,7]
[364706039,1749213048372,-486.59199011,0.00030164,7]
[364706041,1749213048382,-326.78020907,0.00030164,7]
[364706043,1749213048393,-480.0,0.00030164,7]
[364706045,1749213048403,-480.0,0.00030164,7]
[364706047,1749213048413,-480.0,0.00030164,7]
[364706049,1749213048423,-480.0,0.00030164,7]
[364706051,1749213048432,-480.0,0.00030164,7]
[364706053,1749213048442,-480.0,0.00030164,7]
[364706055,1749213048453,-1527.84,0.00030164,7]
[364706057,1749213048463,-480.0,0.00030164,7]
[364706059,1749213048473,-484.09096895,0.00030164,7]
[364706061,1749213048483,-461.87213909,0.00030164,7]
[364706063,1749213048492,-500.0,0.00030164,7]
[364706065,1749213048503,-480.0,0.00030164,7]
[364706068,1749213048516,-500.0,0.00030164,7]
[364706069,1749213048525,-500.0,0.00030164,7]
[364706071,1749213048535,-500.0,0.00030164,7]
[364706073,1749213048544,-819.62,0.00030164,7]
[364706075,1749213048554,-480.0,0.00030164,7]
[364706077,1749213048564,-480.0,0.00030164,7]
[364706079,1749213048574,-205.65349151,0.00030164,7]
[364706082,1749213048584,-825.43,0.00030164,7]
[364706084,1749213048597,-480.0,0.00030164,7]
[364706087,1749213048620,-805.7,0.00030164,7]
[364706089,1749213048639,-480.0,0.00030164,7]
[364706092,1749213048655,-480.0,0.00030164,7]
[364706094,1749213048668,-480.0,0.00030164,7]
[364706097,1749213048684,-480.0,0.00030164,7]
[364706099,1749213048698,-480.0,0.00030164,7]
[364706102,1749213048714,-480.0,0.00030164,7]
[364706105,1749213048732,-1050.38,0.00030164,7]
[364706107,1749213048746,-150.0,0.00030164,2]
[364706109,1749213048758,-483.61507066,0.00030164,7]
[364706112,1749213048776,-480.0,0.00030164,7]
[364706114,1749213048791,-150.0,0.00030164,2]
[364706117,1749213048805,-1506.41,0.00030164,7]
[364706120,1749213048820,-488.90341359,0.00030164,7]
[364706122,1749213048835,-480.0,0.00030164,7]
[364706124,1749213048850,-150.0,0.00030164,2]
[364706127,1749213048865,-480.0,0.00030164,7]
[364706130,1749213048881,-515.07,0.00030164,7]
[364706132,1749213048896,-480.0,0.00030164,7]
[364706135,1749213048910,-480.0,0.00030164,7]
[364706137,1749213048923,-480.0,0.00030164,7]
[364706139,1749213048937,-480.0,0.00030164,7]
[364706142,1749213048954,-925.52,0.00030164,7]
[364706145,1749213048968,-13287.97395978,0.00030164,2]
[364706147,1749213048983,-480.0,0.00030164,7]
[364706149,1749213048994,-483.91478241,0.00030164,7]
[364706152,1749213049006,-480.0,0.00030164,7]
[364706154,1749213049024,-726.99,0.00030164,7]
[364706157,1749213049039,-1101.37,0.00030164,7]
[364706159,1749213049051,-1112.7641155,0.00030164,2]
[364706161,1749213049063,-480.0,0.00030164,7]
[364706164,1749213049076,-585.99866225,0.00030164,7]
[364706167,1749213049093,-440.14668367,0.00030164,7]
[364706169,1749213049106,-480.0,0.00030164,7]
[364706171,1749213049117,-1103.59,0.00030164,7]
[364706173,1749213049129,-480.0,0.00030164,7]
[364706176,1749213049142,-480.0,0.00030164,7]
[364706178,1749213049153,-480.0,0.00030164,7]
[364706180,1749213049165,-480.0,0.00030164,7]
[364706183,1749213049179,-480.0,0.00030164,7]
[364706185,1749213049194,-6003.40900858,0.00030164,2]
[364706187,1749213049207,-532.1,0.00030164,7]
[364706190,1749213049221,-480.0,0.00030164,7]
[364706192,1749213049234,-371.98055948,0.00030164,7]
[364706195,1749213049247,-480.0,0.00030164,7]
[364706197,1749213049260,-426.37179104,0.00030164,7]
[364706199,1749213049277,-480.0,0.00030164,7]
[364706202,1749213049293,-480.0,0.00030164,7]
[364706204,1749213049306,-480.0,0.00030164,7]
[364706206,1749213049318,-1007.29,0.00030164,7]
[364706209,1749213049331,-480.0,0.00030164,7]
[364706212,1749213049351,-480.0,0.00030164,7]
[364706214,1749213049363,-585.67,0.00030164,7]
[364706217,1749213049376,-480.0,0.00030164,7]
[364706219,1749213049391,-507.09387866,0.00030164,7]
[364706221,1749213049405,-480.0,0.00030164,7]
[364706224,1749213049418,-480.0,0.00030164,7]
[364706226,1749213049431,-480.0,0.00030164,7]
[364706228,1749213049444,-480.0,0.00030164,7]
[364706231,1749213049458,-480.0,0.00030164,7]
[364706233,1749213049472,-1639.82,0.00030164,7]
[364706235,1749213049484,-365.53346045,0.00030164,7]
[364706238,1749213049497,-219.9319816,0.00030164,7]
[364706240,1749213049510,-480.0,0.00030164,7]
[364706242,1749213049526,-404.46508848,0.00030164,7]
[364706245,1749213049538,-480.0,0.00030164,7]
[364706247,1749213049550,-480.0,0.00030164,7]
[364706249,1749213049563,-486.51912002,0.00030164,7]
[364706251,1749213049575,-424.51669055,0.00030164,7]
[364706254,1749213049588,-644.27,0.00030164,7]
[364706256,1749213049603,-480.0,0.00030164,7]
[364706258,1749213049616,-824.65,0.00030164,7]
[364706261,1749213049628,-480.0,0.00030164,7]
[364706263,1749213049641,-554.22,0.00030164,7]
[364706265,1749213049653,-400.0,0.00030164,7]
[364706267,1749213049665,-480.0,0.00030164,7]
[364706270,1749213049677,-480.0,0.00030164,7]
[364706272,1749213049689,-480.0,0.00030164,7]
[364706274,1749213049701,-480.0,0.00030164,7]
[364706277,1749213049714,-480.0,0.00030164,7]
[364706279,1749213049726,-480.0,0.00030164,7]
[364706281,1749213049739,-480.0,0.00030164,7]
[364706283,1749213049752,-1002.22289094,0.00030164,42]
[364706286,1749213049767,-500.0,0.00030164,7]
[364706288,1749213049781,-500.0,0.00030164,7]
[364706290,1749213049794,-1405.9,0.00030164,7]
[364706293,1749213049806,-840.57,0.00030164,7]
[364706295,1749213049818,-500.0,0.00030164,7]
[364706297,1749213049831,-500.0,0.00030164,7]
[364706300,1749213049842,-480.0,0.00030164,7]
[364706302,1749213049855,-480.0,0.00030164,7]
[364706304,1749213049866,-1261.07,0.00030164,7]
[364706306,1749213049879,-558.23,0.00030164,7]
[364706309,1749213049892,-480.0,0.00030164,7]
[364706311,1749213049904,-480.0,0.00030164,7]
[364706313,1749213049916,-480.0,0.00030164,7]
[364706316,1749213049928,-480.0,0.00030164,7]
[364706318,1749213049940,-480.0,0.00030164,7]
[364706320,1749213049953,-480.0,0.00030164,7]
[364706322,1749213049965,-480.0,0.00030164,7]
[364706325,1749213049978,-566.79,0.00030164,7]
[364706327,1749213049990,-480.0,0.00030164,7]
[364706329,1749213050003,-480.0,0.00030164,7]
[364706332,1749213050018,-1151.55,0.00030164,7]
[364706334,1749213050031,-480.0,0.00030164,7]
[364706336,1749213050042,-480.0,0.00030164,7]
[364706338,1749213050055,-480.0,0.00030164,7]
[364706341,1749213050067,-480.0,0.00030164,7]
[364706343,1749213050079,-480.0,0.00030164,7]
[364706345,1749213050091,-434.35842698,0.00030164,7]
[364706347,1749213050103,-480.0,0.00030164,7]
[364706350,1749213050115,-1324.79,0.00030164,7]
[364706352,1749213050127,-417.19906657,0.00030164,7]
[364706354,1749213050139,-480.0,0.00030164,7]
[364706356,1749213050151,-480.0,0.00030164,7]
[364706358,1749213050162,-482.89028669,0.00030164,7]
[364706361,1749213050174,-490.83,0.00030164,7]
[364706363,1749213050186,-480.0,0.00030164,7]
[364706365,1749213050197,-575.14,0.00030164,7]
[364706367,1749213050210,-480.0,0.00030164,7]
[364706370,1749213050223,-2223.09,0.00030164,7]
[364706372,1749213050238,-480.0,0.00030164,7]
[364706375,1749213050250,-480.0,0.00030164,7]
[364706377,1749213050263,-480.0,0.00030164,7]
[364706378,1749213050278,-480.0,0.00030164,7]
[364706379,1749213050291,-937.77,0.00030164,7]
[364706380,1749213050303,-1012.38,0.00030164,7]
[364706381,1749213050315,-480.0,0.00030164,7]
[364706382,1749213050327,-487.83162857,0.00030164,7]
[364706383,1749213050339,-480.0,0.00030164,7]
[364706384,1749213050351,-480.0,0.00030164,7]
[364706385,1749213050362,-480.0,0.00030164,7]
[364706386,1749213050374,-480.0,0.00030164,7]
[364706387,1749213050385,-300.0,0.00030164,7]
[364706388,1749213050397,-480.0,0.00030164,7]
[364706389,1749213050410,-484.16367605,0.00030164,7]
[364706390,1749213050422,-628.23543532,0.00030164,7]
[364706391,1749213050434,-368.30618468,0.00030164,7]
[364706392,1749213050446,-480.0,0.00030164,7]
[364706394,1749213050457,-1005.06598888,0.00030164,7]
[364706395,1749213050469,-480.0,0.00030164,7]
[364706397,1749213050481,-480.0,0.00030164,7]
[364706398,1749213050493,-480.0,0.00030164,7]
[364706399,1749213050505,-480.0,0.00030164,7]
[364706400,1749213050521,-480.0,0.00030164,7]
[364706401,1749213050534,-482.77804812,0.00030164,7]
[364706402,1749213050545,-480.0,0.00030164,7]
[364706403,1749213050557,-480.0,0.00030164,7]
[364706404,1749213050568,-480.0,0.00030164,7]
[364706405,1749213050581,-480.0,0.00030164,7]
[364706406,1749213050594,-480.0,0.00030164,7]
[364706407,1749213050606,-469.05084811,0.00030164,7]
[364706409,1749213050619,-480.0,0.00030164,7]
[364706410,1749213050631,-480.0,0.00030164,7]
[364706411,1749213050644,-427.36215937,0.00030164,7]
[364706414,1749213050655,-402.46639774,0.00030164,7]
[364706416,1749213050669,-451.45346544,0.00030164,7]
[364706418,1749213050681,-487.97499973,0.00030164,7]
[364706420,1749213050693,-482.017629,0.00030164,7]
[364706423,1749213050705,-1277.96,0.00030164,7]
[364706425,1749213050717,-481.12102417,0.00030164,7]
[364706427,1749213050729,-1214.28,0.00030164,7]
[364706429,1749213050741,-500.0,0.00030164,7]
[364706432,1749213050753,-500.0,0.00030164,7]
[364706434,1749213050766,-500.0,0.00030164,7]
[364706436,1749213050778,-500.0,0.00030164,7]
[364706438,1749213050790,-480.0,0.00030164,7]
[364706441,1749213050802,-1356.57,0.00030164,7]
[364706443,1749213050813,-555.23119979,0.00030164,7]
[364706445,1749213050825,-462.15104041,0.00030164,7]
[364706447,1749213050837,-480.0,0.00030164,7]
[364706449,1749213050849,-231.18973601,0.00030164,7]
[364706452,1749213050861,-480.0,0.00030164,7]
[364706454,1749213050874,-680.08,0.00030164,7]
[364706456,1749213050885,-1115.23,0.00030164,7]
[364706458,1749213050896,-480.0,0.00030164,7]
[364706461,1749213050908,-975.32,0.00030164,7]
[364706463,1749213050920,-1310.99,0.00030164,7]
[364706465,1749213050931,-480.0,0.00030164,7]
[364706467,1749213050943,-465.79842775,0.00030164,7]
[364706469,1749213050954,-480.0,0.00030164,7]
[364706472,1749213050966,-480.0,0.00030164,7]
[364706474,1749213050977,-480.0,0.00030164,7]
[364706476,1749213050989,-1550.9,0.00030164,7]
[364706478,1749213051001,-586.88,0.00030164,7]
[364706479,1749213051012,-500.0,0.00030164,7]
[364706480,1749213051025,-422.02823933,0.00030164,7]
[364706481,1749213051038,-500.0,0.00030164,7]
[364706482,1749213051051,-487.93579476,0.00030164,7]
[364706483,1749213051063,-480.0,0.00030164,7]
[364706484,1749213051076,-480.0,0.00030164,7]
[364706485,1749213051087,-1674.79,0.00030164,7]
[364706486,1749213051099,-150.0,0.00030164,7]
[364706487,1749213051108,-480.0,0.00030164,7]
[364706488,1749213051118,-480.0,0.00030164,7]
[364706489,1749213051128,-482.61287909,0.00030164,7]
[364706491,1749213051137,-480.0,0.00030164,7]
[364706493,1749213051147,-1000.0,0.00030164,7]
[364706495,1749213051156,-500.0,0.00030164,7]
[364706497,1749213051165,-1297.72,0.00030164,7]
[364706499,1749213051175,-480.0,0.00030164,7]
[364706500,1749213051184,-480.0,0.00030164,7]
[364706502,1749213051193,-150.0,0.00030164,7]
[364706504,1749213051203,-480.0,0.00030164,7]
[364706549,1749213051646,-500.0,0.00030164,7]
[364706553,1749213051674,-630.27,0.00030164,7]
[364706556,1749213051691,-480.0,0.00030164,7]
[364706557,1749213051701,-480.0,0.00030164,7]
[364706559,1749213051711,-480.0,0.00030164,7]
[364706562,1749213051721,-500.0,0.00030164,7]
[364706563,1749213051731,-502.03,0.00030164,7]
[364706565,1749213051741,-480.0,0.00030164,7]
[364706568,1749213051751,-500.0,0.00030164,7]
[364706569,1749213051761,-489.13619143,0.00030164,7]
[364706571,1749213051774,-500.0,0.00030164,7]
[364706573,1749213051784,-480.0,0.00030164,7]
[364706575,1749213051794,-480.0,0.00030164,7]
[364706577,1749213051804,-480.0,0.00030164,7]
[364706579,1749213051813,-500.0,0.00030164,7]
[364706581,1749213051823,-301.3664513,0.00030164,7]
[364706583,1749213051833,-480.0,0.00030164,7]
[364706585,1749213051843,-800.23,0.00030164,7]
[364706587,1749213051854,-480.0,0.00030164,7]
[364706589,1749213051864,-480.0,0.00030164,7]
[364706591,1749213051874,-480.0,0.00030164,7]
[364706593,1749213051885,-480.0,0.00030164,7]
[364706595,1749213051894,-1338.49,0.00030164,7]
[364706597,1749213051904,-150.0,0.00030164,7]
[364706599,1749213051914,-196.58725767,0.00030164,7]
[364706601,1749213051923,-484.14750242,0.00030164,7]
[364706603,1749213051932,-1135.34,0.00030164,7]
[364706605,1749213051942,-150.0,0.00030164,7]
[364706607,1749213051952,-1381.68,0.00030164,7]
[364706609,1749213051961,-480.0,0.00030164,7]
[364706611,1749213051971,-10675.65,0.00030164,7]
[364706613,1749213051980,-482.97967059,0.00030164,7]
[364706615,1749213051990,-500.0,0.00030164,7]
[364706617,1749213051999,-867.3,0.00030164,7]
[364706619,1749213052008,-480.0,0.00030164,7]
[364706621,1749213052021,-491.32245126,0.00030164,7]
[364706623,1749213052031,-150.0,0.00030164,7]
[364706625,1749213052040,-480.0,0.00030164,7]
[364706627,1749213052049,-920.59,0.00030164,7]
[364706629,1749213052059,-480.0,0.00030164,7]
[364706631,1749213052068,-847.56,0.00030164,7]
[364706633,1749213052077,-3353.82,0.00030164,7]
[364706635,1749213052087,-2586.1,0.00030164,7]
[364706637,1749213052095,-480.0,0.00030164,7]